fUSD/lending_fUSD_20250519
["ID","MTS","AMOUNT","RATE_DAILY","PERIOD"]
[361644620,1747660248103,-5448.67,0.00013698,2]
[361644621,1747660248112,-302.47264962,0.00013698,2]
[361644622,1747660248121,-420.0,0.00013698,2]
[361644623,1747660248130,-420.0,0.00013698,2]
[361644624,1747660248140,-420.0,0.00013698,2]
[361644625,1747660248148,-2130.4,0.00013698,2]
[361644626,1747660248157,-420.0,0.00013698,2]
[361644627,1747660248166,-420.0,0.00013698,2]
[361644628,1747660248175,-1228.95,0.00013698,2]
[361644629,1747660248185,-400.0,0.00013698,2]
[361644630,1747660248193,-798.38,0.00013698,2]
[361644631,1747660248203,-400.0,0.00013698,2]
[361644632,1747660248213,-420.0,0.00013698,2]
[361644633,1747660248222,-1947.191811,0.00013698,2]
[361644634,1747660248231,-420.0,0.00013698,2]
[361644635,1747660248240,-1947.191811,0.00013698,2]
[361644636,1747660248249,-1947.191811,0.00013698,2]
[361644637,1747660248258,-1947.191811,0.00013698,2]
[361644638,1747660248267,-420.0,0.00013698,2]
[361644639,1747660248276,-523.64,0.00013698,2]
[361644640,1747660248285,-1845.67,0.00013698,2]
[361644641,1747660248295,-420.0,0.00013698,2]
[361644642,1747660248304,-420.0,0.00013698,2]
[361644643,1747660248313,-1366.25,0.00013698,2]
[361644644,1747660248322,-420.0,0.00013698,2]
[361644645,1747660248331,-1073.73,0.00013698,2]
[361644646,1747660248340,-2040.01,0.00013698,2]
[361644647,1747660248349,-493.29,0.00013698,2]
[361644648,1747660248358,-960.77,0.00013698,2]
[361644649,1747660248367,-721.23056387,0.00013698,2]
[361644650,1747660248961,-46.09943613,0.00013698,2]
[361644651,1747660248970,-348.04647393,0.00013698,2]
[361644652,1747660248981,-71.95352607,0.00013698,2]
[361644653,1747660248991,-151.0,0.00013698,2]
[361644654,1747660249000,-977.24647394,0.00013698,2]
[361644655,1747660249023,-190.83352606,0.00013698,2]
[361644656,1747660249033,-1247.33,0.00013698,2]
[361644657,1747660249042,-420.0,0.00013698,2]
[361644658,1747660249051,-1184.03,0.00013698,2]
[361644659,1747660249060,-1251.09,0.00013698,2]
[361644660,1747660249069,-420.0,0.00013698,2]
[361644661,1747660249078,-2233.24,0.00013698,2]
[361644662,1747660249087,-510.34,0.00013698,2]
[361644663,1747660249096,-1585.46,0.00013698,2]
[361644664,1747660249105,-151.0,0.00013698,2]
[361644665,1747660249114,-151.0,0.00013698,2]
[361644666,1747660249124,-151.0,0.00013698,2]
[361644667,1747660249133,-506.74615216,0.00013698,2]
[361644668,1747660249142,-151.0,0.00013698,2]
[361644669,1747660249151,-556.22,0.00013698,2]
[361644670,1747660249161,-536.54,0.00013698,2]
[361644671,1747660249170,-3558.67,0.00013698,2]
[361644672,1747660249179,-747.29,0.00013698,2]
[361644673,1747660249188,-151.0,0.00013698,2]
[361644674,1747660249197,-151.0,0.00013698,2]
[361644675,1747660249206,-380.0,0.00013698,2]
[361644676,1747660249216,-151.0,0.00013698,2]
[361644677,1747660249225,-151.0,0.00013698,2]
[361644678,1747660249235,-1717.8,0.00013698,2]
[361644679,1747660249244,-420.0,0.00013698,2]
[361644680,1747660249253,-1006.03,0.00013698,2]
[361644681,1747660249263,-420.0,0.00013698,2]
[361644682,1747660249272,-496.29,0.00013698,2]
[361644683,1747660249281,-706.49,0.00013698,2]
[361644684,1747660249290,-380.0,0.00013698,2]
[361644685,1747660249299,-420.0,0.00013698,2]
[361644686,1747660249309,-380.0,0.00013698,2]
[361644687,1747660249318,-420.0,0.00013698,2]
[361644688,1747660249328,-420.0,0.00013698,2]
[361644689,1747660249338,-684.63,0.00013698,2]
[361644690,1747660249347,-420.0,0.00013698,2]
[361644691,1747660249356,-1130.21,0.00013698,2]
[361644692,1747660249366,-895.9,0.00013698,2]
[361644693,1747660249375,-1791.6,0.00013698,2]
[361644694,1747660249384,-420.0,0.00013698,2]
[361644695,1747660249393,-420.0,0.00013698,2]
[361644696,1747660249402,-488.83,0.00013698,2]
[361644697,1747660249411,-420.0,0.00013698,2]
[361644698,1747660249421,-11392.1,0.00013698,2]
[361644699,1747660249430,-420.0,0.00013698,2]
[361644700,1747660249439,-994.46,0.00013698,2]
[361644701,1747660249448,-420.0,0.00013698,2]
[361644702,1747660249458,-420.0,0.00013698,2]
[361644703,1747660249467,-670.94,0.00013698,2]
[361644704,1747660249477,-420.0,0.00013698,2]
[361644705,1747660249486,-1513.31,0.00013698,2]
[361644706,1747660249499,-816.99,0.00013698,2]
[361644707,1747660249509,-380.0,0.00013698,2]
[361644708,1747660249519,-151.0,0.00013698,2]
[361644709,1747660249532,-151.0,0.00013698,2]
[361644710,1747660249543,-420.0,0.00013698,2]
[361644711,1747660249552,-151.0,0.00013698,2]
[361644712,1747660249561,-434.84,0.00013698,2]
[361644713,1747660249572,-440.77,0.00013698,2]
[361644714,1747660249582,-581.29,0.00013698,2]
[361644715,1747660249591,-380.0,0.00013698,2]
[361644716,1747660249601,-151.0,0.00013698,2]
[361644717,1747660249610,-1122.35,0.00013698,2]
[361644718,1747660249620,-499.62,0.00013698,2]
[361644719,1747660249629,-151.0,0.00013698,2]
[361644720,1747660249638,-151.0,0.00013698,2]
[361644721,1747660249647,-577.52,0.00013698,2]
[361644722,1747660249656,-151.0,0.00013698,2]
[361644723,1747660249665,-151.0,0.00013698,2]
[361644724,1747660249675,-151.0,0.00013698,2]
[361644725,1747660249684,-420.0,0.00013698,2]
[361644726,1747660249693,-420.0,0.00013698,2]
[361644727,1747660249702,-554.36,0.00013698,2]
[361644728,1747660249715,-1329.41,0.00013698,2]
[361644729,1747660249724,-569.87,0.00013698,2]
[361644730,1747660249733,-1012.53,0.00013698,2]
[361644731,1747660249742,-380.0,0.00013698,2]
[361644732,1747660249752,-2404.68,0.00013698,2]
[361644733,1747660249761,-420.0,0.00013698,2]
[361644734,1747660249770,-796.17,0.00013698,2]
[361644735,1747660249779,-380.0,0.00013698,2]
[361644736,1747660249788,-400.0,0.00013698,2]
[361644737,1747660249797,-1259.95,0.00013698,2]
[361644738,1747660249806,-420.0,0.00013698,2]
[361644739,1747660249815,-420.0,0.00013698,2]
[361644740,1747660249824,-400.0,0.00013698,2]
[361644741,1747660249833,-1013.56,0.00013698,2]
[361644742,1747660249842,-763.62,0.00013698,2]
[361644743,1747660249852,-9169.91,0.00013698,2]
[361644744,1747660249861,-420.0,0.00013698,2]
[361644745,1747660249871,-836.81,0.00013698,2]
[361644746,1747660249880,-420.0,0.00013698,2]
[361644747,1747660249890,-967.94,0.00013698,2]
[361644748,1747660249900,-151.0,0.00013698,2]
[361644749,1747660249909,-420.0,0.00013698,2]
[361644750,1747660249918,-151.0,0.00013698,2]
[361644751,1747660249928,-420.0,0.00013698,2]
[361644752,1747660249938,-151.0,0.00013698,2]
[361644753,1747660249949,-738.0,0.00013698,2]
[361644754,1747660249959,-1142.28,0.00013698,2]
[361644755,1747660249968,-151.0,0.00013698,2]
[361644756,1747660249977,-151.0,0.00013698,2]
[361644757,1747660249986,-420.0,0.00013698,2]
[361644758,1747660249995,-400.0,0.00013698,2]
[361644759,1747660250005,-420.0,0.00013698,2]
[361644760,1747660250015,-420.0,0.00013698,2]
[361644761,1747660250024,-158.275608,0.00013698,2]
[361644762,1747660250035,-2429.46,0.00013698,2]
[361644763,1747660250044,-523.68,0.00013698,2]
[361644764,1747660250055,-420.0,0.00013698,2]
[361644765,1747660250064,-497.91,0.00013698,2]
[361644766,1747660250073,-6087.02,0.00013698,2]
[361644767,1747660250084,-714.19,0.00013698,2]
[361644768,1747660250093,-883.51,0.00013698,2]
[361644769,1747660250102,-151.722941,0.00013698,2]
[361644770,1747660250113,-420.0,0.00013698,2]
[361644771,1747660250123,-420.0,0.00013698,2]
[361644772,1747660250133,-581.893382,0.00013698,2]
[361644773,1747660250143,-846.08,0.00013698,2]
[361644774,1747660250153,-581.893382,0.00013698,2]
[361644775,1747660250164,-1597.18,0.00013698,2]
[361644776,1747660250173,-581.893382,0.00013698,2]
[361644777,1747660250185,-581.893382,0.00013698,2]
[361644778,1747660250194,-581.893382,0.00013698,2]
[361644779,1747660250204,-420.0,0.00013698,2]
[361644780,1747660250213,-647.91,0.00013698,2]
[361644781,1747660250222,-503.89,0.00013698,2]
[361644782,1747660250231,-420.0,0.00013698,2]
[361644783,1747660250240,-151.0,0.00013698,2]
[361644784,1747660250250,-1006.41,0.00013698,2]
[361644785,1747660250259,-3436.52,0.00013698,2]
[361644786,1747660250268,-151.0,0.00013698,2]
[361644787,1747660250279,-420.0,0.00013698,2]
[361644788,1747660250288,-151.0,0.00013698,2]
[361644789,1747660250297,-151.0,0.00013698,2]
[361644790,1747660250307,-151.0,0.00013698,2]
[361644791,1747660250316,-168.382529,0.00013698,2]
[361644792,1747660250326,-1663.81,0.00013698,2]
[361644793,1747660250335,-420.0,0.00013698,2]
[361644794,1747660250345,-581.893382,0.00013698,2]
[361644795,1747660250354,-581.893382,0.00013698,2]
[361644796,1747660250363,-581.893382,0.00013698,2]
[361644797,1747660250372,-350.847935,0.00013698,2]
[361644798,1747660250381,-581.893382,0.00013698,2]
[361644799,1747660250391,-350.847935,0.00013698,2]
[361644800,1747660250400,-581.893382,0.00013698,2]
[361644801,1747660250409,-350.847935,0.00013698,2]
[361644802,1747660250418,-350.847935,0.00013698,2]
[361644803,1747660250427,-350.847935,0.00013698,2]
[361644804,1747660250436,-1904.51,0.00013698,2]
[361644805,1747660250446,-3434.98,0.00013698,2]
[361644806,1747660250455,-1130.57,0.00013698,2]
[361644807,1747660250467,-1340.68263,0.00013698,2]
[361644808,1747660250476,-151.0,0.00013698,2]
[361644809,1747660250485,-1395.37,0.00013698,2]
[361644810,1747660250495,-151.0,0.00013698,2]
[361644811,1747660250504,-350.847935,0.00013698,2]
[361644812,1747660250513,-151.0,0.00013698,2]
[361644813,1747660250522,-847.87,0.00013698,2]
[361644814,1747660250536,-350.847935,0.00013698,2]
[361644815,1747660250546,-151.0,0.00013698,2]
[361644816,1747660250555,-350.847935,0.00013698,2]
[361644817,1747660250564,-151.0,0.00013698,2]
[361644818,1747660250573,-350.847935,0.00013698,2]
[361644819,1747660250583,-6183.66,0.00013698,2]
[361644820,1747660250592,-350.847935,0.00013698,2]
[361644821,1747660250602,-151.0,0.00013698,2]
[361644822,1747660250611,-151.0,0.00013698,2]
[361644823,1747660250621,-151.0,0.00013698,2]
[361644824,1747660250630,-420.0,0.00013698,2]
[361644825,1747660250639,-171.844681,0.00013698,2]
[361644826,1747660250648,-660.74,0.00013698,2]
[361644827,1747660250658,-938.87,0.00013698,2]
[361644828,1747660250667,-380.0,0.00013698,2]
[361644829,1747660250676,-701.78,0.00013698,2]
[361644830,1747660250685,-1732.5,0.00013698,2]
[361644831,1747660250939,-477.04993413,0.00013698,2]
[361644832,1747660250948,-539.23,0.00013698,2]
[361644833,1747660250958,-512.57,0.00013698,2]
[361644834,1747660250967,-3877.01,0.00013698,2]
[361644835,1747660250976,-1924.81,0.00013698,2]
[361644836,1747660250985,-619.27451,0.00013698,2]
[361644837,1747660250994,-619.27451,0.00013698,2]
[361644838,1747660251003,-420.0,0.00013698,2]
[361644839,1747660251013,-619.27451,0.00013698,2]
[361644840,1747660251022,-420.0,0.00013698,2]
[361644841,1747660251031,-420.0,0.00013698,2]
[361644842,1747660251040,-619.27451,0.00013698,2]
[361644843,1747660251050,-3493.75,0.00013698,2]
[361644844,1747660251059,-151.0,0.00013698,2]
[361644845,1747660251068,-151.0,0.00013698,2]
[361644846,1747660251077,-151.0,0.00013698,2]
[361644847,1747660251086,-151.0,0.00013698,2]
[361644848,1747660251096,-619.27451,0.00013698,2]
[361644849,1747660251104,-619.27451,0.00013698,2]
[361644850,1747660251113,-619.27451,0.00013698,2]
[361644851,1747660251122,-619.27451,0.00013698,2]
[361644852,1747660251131,-420.0,0.00013698,2]
[361644853,1747660251140,-420.0,0.00013698,2]
[361644854,1747660251150,-202.46276,0.00013698,2]
[361644855,1747660251159,-400.0,0.00013698,2]
[361644856,1747660251168,-420.0,0.00013698,2]
[361644857,1747660251177,-72942.41183325,0.00013698,2]
[361644858,1747660251195,-4241.28029838,0.00013698,2]
[361644859,1747660252333,2000.0,0.0002739,120]
[361644860,1747660258009,166.96,0.00010223,2]
[361644861,1747660262206,516.577892,0.0002739,120]
[361644870,1747660756728,814.29,0.00010763,2]
[361644875,1747660954662,8000.0,0.00025,60]
[361644879,1747661156517,7154.46,0.0001,2]
[361644889,1747661353116,-10000.0,0.00012,2]
[361644890,1747661354013,-10000.0,0.00012,2]
[361644891,1747661355029,-10000.0,0.00012,2]
[361644892,1747661355713,-10000.0,0.00012,2]
[361644893,1747661357563,-10000.0,0.00012,2]
[361644894,1747661364820,-7063.92759563,0.00012,2]
[361644898,1747661411498,212.0,0.00011976,2]
[361644923,1747661431384,-3314.03549823,0.00012377,2]
[361644927,1747661431528,-39597.93450177,0.00012377,2]
[361644928,1747661431537,-169.52,0.00012481,2]
[361644929,1747661431546,-169.52,0.00012496,2]
[361644930,1747661431556,-169.52,0.00012512,2]
[361644931,1747661431565,-169.52,0.00012528,2]
[361644932,1747661431574,-169.52,0.00012543,2]
[361644933,1747661431583,-570.25,0.00012557,2]
[361644934,1747661431592,-1000.0,0.00012588,2]
[361644935,1747661431601,-250.0,0.00012627,2]
[361644936,1747661431610,-300.0,0.00012679,2]
[361644937,1747661431619,-1200.0,0.00012679,2]
[361644938,1747661431629,-17554.66,0.0001268,2]
[361644939,1747661431638,-459.11,0.00012683,2]
[361644940,1747661431648,-163.79,0.00012705,2]
[361644941,1747661431658,-200.0,0.00012731,2]
[361644942,1747661431667,-216.8033575,0.000129,2]
[361644943,1747661431676,-161.68,0.00012991,2]
[361644944,1747661431686,-216.8033574,0.00013,2]
[361644945,1747661431696,-267.17,0.00013,2]
[361644946,1747661431705,-267.17,0.00013,2]
[361644947,1747661431715,-267.17,0.00013,2]
[361644948,1747661431724,-267.17,0.00013,2]
[361644950,1747661431734,-267.17,0.00013,2]
[361644951,1747661431744,-207.4,0.00013012,2]
[361644952,1747661431753,-814.29,0.00013027,2]
[361644953,1747661431762,-325.36,0.00013078,2]
[361644954,1747661431771,-216.8033574,0.000131,2]
[361644955,1747661431781,-216.8033574,0.000132,2]
[361644957,1747661431790,-1045.56,0.00013288,2]
[361644959,1747661431799,-216.8033574,0.000133,2]
[361644961,1747661431813,-216.8033574,0.000134,2]
[361644963,1747661431822,-150.0,0.000134,2]
[361644965,1747661431831,-2328.15,0.00013425,2]
[361644967,1747661431841,-170.07,0.00013425,2]
[361644969,1747661431851,-300.0,0.00013425,2]
[361644971,1747661431860,-150.3,0.00013425,2]
[361644973,1747661431869,-352.86,0.00013425,2]
[361644975,1747661431879,-150.3,0.00013425,2]
[361644977,1747661431888,-179.74,0.00013425,2]
[361644979,1747661431898,-1157.59,0.00013425,2]
[361644981,1747661431907,-170.07,0.00013425,2]
[361644983,1747661431917,-150.3,0.00013425,2]
[361644985,1747661431927,-170.07,0.00013425,2]
[361644987,1747661431940,-150.3,0.00013425,2]
[361644990,1747661431949,-150.3,0.00013425,2]
[361644992,1747661431958,-457.1863,0.00013498,2]
[361644994,1747661431968,-453.11,0.000135,2]
[361644995,1747661431978,-216.8033574,0.000135,2]
[361644996,1747661431989,-200.0,0.00013504,2]
[361644997,1747661432000,-241.1594963,0.0001351,2]
[361644998,1747661432010,-767.9241447,0.00013564,2]
[361645000,1747661432347,-1000.0,0.0001358,2]
[361645001,1747661432358,-212.85347031,0.00013587,2]
[361645002,1747661432367,-2929.33098916,0.00013588,2]
[361645003,1747661432377,-200.0,0.00013588,2]
[361645004,1747661432387,-500.0,0.00013589,2]
[361645005,1747661432396,-151.0,0.0001359,2]
[361645007,1747661432405,-668.65185757,0.0001359,2]
[361645009,1747661432415,-163.69287629,0.00013592,2]
[361645011,1747661432425,-500.0,0.00013596,2]
[361645013,1747661432435,-294.95495817,0.00013596,2]
[361645015,1747661432444,-240.58715879,0.00013596,2]
[361645017,1747661432454,-10060.70398155,0.00013597,2]
[361645019,1747661432462,-86467.1411,0.00013598,2]
[361645021,1747661432472,-607.2655,0.00013598,2]
[361645023,1747661432481,-380.9908,0.00013598,2]
[361645025,1747661432493,-5000.0,0.00013598,2]
[361645027,1747661432505,-216.8033574,0.000136,2]
[361645030,1747661432515,-334.06,0.00013613,2]
[361645031,1747661432524,-353.24,0.00013613,2]
[361645033,1747661432534,-353.24,0.00013613,2]
[361645035,1747661432543,-162.76,0.00013613,2]
[361645037,1747661432553,-162.76,0.00013613,2]
[361645039,1747661432562,-2929.33098914,0.00013623,2]
[361645041,1747661432572,-212.85347028,0.00013632,2]
[361645043,1747661432581,-1385.72,0.00013635,2]
[361645045,1747661432590,-170.07,0.00013636,2]
[361645047,1747661432600,-170.07,0.00013636,2]
[361645050,1747661432609,-170.37,0.00013636,2]
[361645051,1747661432618,-2929.33098914,0.00013657,2]
[361645053,1747661432628,-500.0,0.00013673,2]
[361645056,1747661432637,-500.0,0.00013673,2]
[361645057,1747661432646,-500.0,0.00013673,2]
[361645059,1747661432655,-502.53967774,0.00013673,2]
[361645061,1747661432665,-500.0,0.00013673,2]
[361645063,1747661432675,-500.0,0.00013673,2]
[361645065,1747661432685,-500.0,0.00013673,2]
[361645067,1747661432694,-212.85347028,0.00013676,2]
[361645070,1747661432704,-69372.85132652,0.0001368,2]
[361645077,1747661432765,-962.1341602,0.0001368,2]
[361645081,1747661432795,-999.24145408,0.0001368,2]
[361645315,1747661437504,-161.4694852,0.00012381,2]
[361645316,1747661437514,-6380.4779028,0.00013567,2]
[361645317,1747661437693,-449.5220972,0.00013567,2]
[361645318,1747661437703,-20958.14968293,0.0001368,2]
[361645330,1747661440245,-4043.0,0.00013567,2]
[361645331,1747661440254,-118538.85249075,0.0001368,2]
[361645332,1747661440263,-151.0,0.0001368,2]
[361645333,1747661440273,-392.63566356,0.00013687,2]
[361645334,1747661440281,-283.78875568,0.00013687,2]
[361645335,1747661440291,-377.26188064,0.00013687,2]
[361645336,1747661440300,-7674.3609427,0.00013688,2]
[361645337,1747661440309,-79901.1307447,0.00013688,2]
[361645338,1747661440319,-1548.0640383,0.00013688,2]
[361645339,1747661440328,-205.5659414,0.00013688,2]
[361645340,1747661440337,-2929.33098914,0.00013692,2]
[361645341,1747661440346,-694.0,0.00013698,2]
[361645342,1747661440355,-273.43475891,0.00013698,2]
[361645343,1747661440575,-97677.43627482,0.00013698,2]
[361645344,1747661440585,-152.248753,0.00013698,2]
[361645345,1747661440594,-151.0,0.00013698,2]
[361645346,1747661440604,-151.0,0.00013698,2]
[361645347,1747661440614,-151.0,0.00013698,2]
[361645348,1747661440623,-151.0,0.00013698,2]
[361645349,1747661440632,-151.0,0.00013698,2]
[361645350,1747661440641,-151.0,0.00013698,2]
[361645351,1747661440651,-213.10197221,0.00013698,2]
[361645352,1747661440660,-228.341577,0.00013698,2]
[361645353,1747661440670,-151.0,0.00013698,2]
[361645354,1747661440679,-1030.162348,0.00013698,2]
[361645355,1747661440688,-401.62317872,0.00013698,2]
[361645356,1747661440698,-500.0,0.00013698,2]
[361645357,1747661440707,-545.90206874,0.00013698,2]
[361645358,1747661440717,-220.952852,0.00013698,2]
[361645359,1747661440727,-151.0,0.00013698,2]
[361645360,1747661440739,-401.48216303,0.00013698,2]
[361645361,1747661440748,-400.0,0.00013698,2]
[361645362,1747661440758,-2906.969418,0.00013698,2]
[361645363,1747661440767,-402.62811214,0.00013698,2]
[361645364,1747661440776,-1284.820854,0.00013698,2]
[361645365,1747661440785,-401.09469543,0.00013698,2]
[361645366,1747661440795,-151.0,0.00013698,2]
[361645367,1747661440804,-171.950031,0.00013698,2]
[361645368,1747661440813,-151.0,0.00013698,2]
[361645369,1747661440823,-400.0,0.00013698,2]
[361645370,1747661440832,-420.0,0.00013698,2]
[361645371,1747661440841,-210.7605581,0.00013698,2]
[361645372,1747661440851,-420.0,0.00013698,2]
[361645373,1747661440861,-179.46611887,0.00013698,2]
[361645374,1747661440870,-434.03997131,0.00013698,2]
[361645375,1747661440881,-381.151416,0.00013698,2]
[361645376,1747661440890,-381.151416,0.00013698,2]
[361645377,1747661440899,-420.0,0.00013698,2]
[361645378,1747661440909,-420.0,0.00013698,2]
[361645379,1747661440919,-366.88096896,0.00013698,2]
[361645380,1747661440928,-400.0,0.00013698,2]
[361645381,1747661440941,-420.0,0.00013698,2]
[361645382,1747661440951,-400.0,0.00013698,2]
[361645383,1747661440960,-420.0,0.00013698,2]
[361645384,1747661440970,-360.0,0.00013698,2]
[361645385,1747661440980,-420.0,0.00013698,2]
[361645386,1747661440992,-420.0,0.00013698,2]
[361645387,1747661441003,-428.93,0.00013698,2]
[361645388,1747661441013,-420.0,0.00013698,2]
[361645389,1747661441023,-420.0,0.00013698,2]
[361645390,1747661441032,-472.98,0.00013698,2]
[361645391,1747661441042,-401.97023752,0.00013698,2]
[361645392,1747661441051,-400.0,0.00013698,2]
[361645393,1747661441061,-400.0,0.00013698,2]
[361645394,1747661441070,-420.0,0.00013698,2]
[361645395,1747661441079,-400.0,0.00013698,2]
[361645396,1747661441088,-420.0,0.00013698,2]
[361645397,1747661441098,-400.0,0.00013698,2]
[361645398,1747661441107,-420.0,0.00013698,2]
[361645399,1747661441116,-400.0,0.00013698,2]
[361645400,1747661441126,-420.0,0.00013698,2]
[361645401,1747661441137,-420.0,0.00013698,2]
[361645402,1747661441148,-400.0,0.00013698,2]
[361645403,1747661441158,-420.0,0.00013698,2]
[361645404,1747661441167,-420.0,0.00013698,2]
[361645405,1747661441178,-420.0,0.00013698,2]
[361645406,1747661441188,-400.0,0.00013698,2]
[361645407,1747661441197,-420.0,0.00013698,2]
[361645408,1747661441206,-420.0,0.00013698,2]
[361645409,1747661441216,-316.1151068,0.00013698,2]
[361645410,1747661441225,-420.0,0.00013698,2]
[361645411,1747661441235,-400.0,0.00013698,2]
[361645412,1747661441246,-420.0,0.00013698,2]
[361645413,1747661441255,-400.0,0.00013698,2]
[361645414,1747661441264,-420.0,0.00013698,2]
[361645415,1747661441273,-400.0,0.00013698,2]
[361645416,1747661441282,-420.0,0.00013698,2]
[361645417,1747661441291,-151.0,0.00013698,2]
[361645418,1747661441301,-151.0,0.00013698,2]
[361645419,1747661441310,-420.0,0.00013698,2]
[361645420,1747661441319,-400.0,0.00013698,2]
[361645421,1747661441328,-401.44282912,0.00013698,2]
[361645422,1747661441337,-420.0,0.00013698,2]
[361645423,1747661441347,-420.0,0.00013698,2]
[361645424,1747661441357,-400.0,0.00013698,2]
[361645425,1747661441366,-400.0,0.00013698,2]
[361645426,1747661441375,-420.0,0.00013698,2]
[361645427,1747661441385,-417.38,0.00013698,2]
[361645428,1747661441395,-420.0,0.00013698,2]
[361645429,1747661441404,-420.0,0.00013698,2]
[361645430,1747661441414,-400.0,0.00013698,2]
[361645431,1747661441423,-400.0,0.00013698,2]
[361645432,1747661441432,-375.82657516,0.00013698,2]
[361645433,1747661441441,-400.0,0.00013698,2]
[361645434,1747661441450,-151.0,0.00013698,2]
[361645435,1747661441459,-153.076246,0.00013698,2]
[361645436,1747661441468,-400.0,0.00013698,2]
[361645437,1747661441479,-420.0,0.00013698,2]
[361645438,1747661441489,-400.0,0.00013698,2]
[361645439,1747661441498,-400.0,0.00013698,2]
[361645440,1747661441507,-400.0,0.00013698,2]
[361645441,1747661441516,-420.0,0.00013698,2]
[361645442,1747661441525,-400.0,0.00013698,2]
[361645443,1747661441535,-420.0,0.00013698,2]
[361645444,1747661441545,-250.0,0.00013698,2]
[361645445,1747661441554,-151.0,0.00013698,2]
[361645446,1747661441563,-262.214402,0.00013698,2]
[361645447,1747661441574,-405.50304602,0.00013698,2]
[361645448,1747661441584,-420.0,0.00013698,2]
[361645449,1747661441593,-400.0,0.00013698,2]
[361645450,1747661441602,-465.18616464,0.00013698,2]
[361645451,1747661441611,-400.0,0.00013698,2]
[361645452,1747661441620,-400.1058444,0.00013698,2]
[361645453,1747661441629,-400.0,0.00013698,2]
[361645454,1747661441638,-573.38327109,0.00013698,2]
[361645455,1747661441647,-501.32200393,0.00013698,2]
[361645456,1747661441657,-420.0,0.00013698,2]
[361645457,1747661441666,-400.0,0.00013698,2]
[361645458,1747661441676,-420.0,0.00013698,2]
[361645459,1747661441685,-420.0,0.00013698,2]
[361645460,1747661441694,-319.3559399,0.00013698,2]
[361645461,1747661441704,-151.0,0.00013698,2]
[361645462,1747661441713,-151.0,0.00013698,2]
[361645463,1747661441723,-400.0,0.00013698,2]
[361645464,1747661441732,-420.0,0.00013698,2]
[361645465,1747661441742,-467.33,0.00013698,2]
[361645466,1747661441751,-398.41605946,0.00013698,2]
[361645467,1747661441761,-400.0,0.00013698,2]
[361645468,1747661441770,-400.0,0.00013698,2]
[361645469,1747661441780,-671.11,0.00013698,2]
[361645470,1747661441789,-420.0,0.00013698,2]
[361645471,1747661441799,-400.0,0.00013698,2]
[361645472,1747661441808,-420.0,0.00013698,2]
[361645473,1747661441818,-420.0,0.00013698,2]
[361645474,1747661441827,-420.0,0.00013698,2]
[361645475,1747661441837,-511.33222598,0.00013698,2]
[361645476,1747661441846,-420.0,0.00013698,2]
[361645477,1747661441855,-420.0,0.00013698,2]
[361645478,1747661441865,-420.0,0.00013698,2]
[361645479,1747661441874,-420.0,0.00013698,2]
[361645480,1747661441883,-420.0,0.00013698,2]
[361645481,1747661441893,-420.0,0.00013698,2]